lending/lending_fUSD_20250131
["ID","MTS","AMOUNT","RATE_DAILY","PERIOD"]
[351092722,1738331434857,-500.0,0.00016438,2]
[351092723,1738331434866,-728.4,0.00016438,2]
[351092724,1738331434875,-614.16,0.00016438,2]
[351092725,1738331434885,-500.0,0.00016438,2]
[351092726,1738331434894,-500.0,0.00016438,2]
[351092727,1738331435199,-500.0,0.00016438,2]
[351092728,1738331435209,-500.0,0.00016438,2]
[351092729,1738331435219,-500.0,0.00016438,2]
[351092730,1738331435229,-500.0,0.00016438,2]
[351092731,1738331435238,-619.78,0.00016438,2]
[351092732,1738331435249,-936.4,0.00016438,2]
[351092733,1738331435259,-500.0,0.00016438,2]
[351092734,1738331435269,-500.0,0.00016438,2]
[351092735,1738331435280,-1117.34,0.00016438,2]
[351092736,1738331435289,-500.0,0.00016438,2]
[351092737,1738331435300,-554.53,0.00016438,2]
[351092738,1738331435310,-500.0,0.00016438,2]
[351092739,1738331435320,-500.0,0.00016438,2]
[351092740,1738331435329,-500.0,0.00016438,2]
[351092741,1738331435339,-500.0,0.00016438,2]
[351092742,1738331435348,-502.78828362,0.00016438,2]
[351092743,1738331435358,-500.0,0.00016438,2]
[351092744,1738331435367,-500.0,0.00016438,2]
[351092745,1738331435376,-647.75,0.00016438,2]
[351092746,1738331435386,-503.29666369,0.00016438,2]
[351092747,1738331435395,-1098.68,0.00016438,2]
[351092748,1738331435405,-625.34,0.00016438,2]
[351092749,1738331435416,-571.39442585,0.00016438,2]
[351092750,1738331435428,-500.0,0.00016438,2]
[351092751,1738331435437,-500.0,0.00016438,2]
[351092752,1738331435446,-511.42045189,0.00016438,2]
[351092753,1738331435456,-500.0,0.00016438,2]
[351092754,1738331435466,-500.0,0.00016438,2]
[351092755,1738331435475,-500.0,0.00016438,2]
[351092756,1738331435485,-668.66,0.00016438,2]
[351092757,1738331435494,-446.02238197,0.00016438,2]
[351092758,1738331435504,-599.59,0.00016438,2]
[351092759,1738331435514,-1242.52,0.00016438,2]
[351092760,1738331435525,-500.0,0.00016438,2]
[351092761,1738331435535,-500.0,0.00016438,2]
[351092762,1738331435544,-500.0,0.00016438,2]
[351092763,1738331435554,-879.23,0.00016438,2]
[351092764,1738331435563,-500.0,0.00016438,2]
[351092765,1738331435574,-500.0,0.00016438,2]
[351092766,1738331435583,-500.0,0.00016438,2]
[351092767,1738331435592,-500.0,0.00016438,2]
[351092768,1738331435602,-500.0,0.00016438,2]
[351092769,1738331435611,-500.0,0.00016438,2]
[351092770,1738331435621,-500.0,0.00016438,2]
[351092771,1738331435631,-500.0,0.00016438,2]
[351092772,1738331435640,-500.0,0.00016438,2]
[351092773,1738331435649,-568.63,0.00016438,2]
[351092774,1738331435658,-604.15,0.00016438,2]
[351092775,1738331435668,-500.0,0.00016438,2]
[351092776,1738331435677,-513.99,0.00016438,2]
[351092777,1738331435686,-500.0,0.00016438,2]
[351092778,1738331435697,-500.0,0.00016438,2]
[351092779,1738331435707,-500.0,0.00016438,2]
[351092780,1738331435716,-500.0,0.00016438,2]
[351092781,1738331435726,-505.52,0.00016438,2]
[351092782,1738331435735,-1266.01,0.00016438,2]
[351092783,1738331435744,-500.0,0.00016438,2]
[351092784,1738331435753,-500.0,0.00016438,2]
[351092785,1738331435763,-500.0,0.00016438,2]
[351092786,1738331435772,-500.0,0.00016438,2]
[351092787,1738331435782,-500.0,0.00016438,2]
[351092788,1738331435791,-637.65,0.00016438,2]
[351092789,1738331435800,-500.0,0.00016438,2]
[351092790,1738331435810,-500.0,0.00016438,2]
[351092791,1738331435820,-500.0,0.00016438,2]
[351092792,1738331435830,-500.0,0.00016438,2]
[351092793,1738331435839,-500.0,0.00016438,2]
[351092794,1738331435849,-500.0,0.00016438,2]
[351092795,1738331435858,-804.7,0.00016438,2]
[351092796,1738331435868,-500.0,0.00016438,2]
[351092797,1738331435877,-500.0,0.00016438,2]
[351092798,1738331435887,-500.0,0.00016438,2]
[351092799,1738331435896,-440.5142811,0.00016438,2]
[351092800,1738331435906,-500.0,0.00016438,2]
[351092801,1738331435917,-500.0,0.00016438,2]
[351092802,1738331435927,-500.0,0.00016438,2]
[351092803,1738331435936,-500.0,0.00016438,2]
[351092804,1738331435946,-500.0,0.00016438,2]
[351092805,1738331435955,-184.97701498,0.00016438,2]
[351092806,1738331435965,-500.0,0.00016438,2]
[351092807,1738331435975,-714.34,0.00016438,2]
[351092808,1738331435984,-512.03,0.00016438,2]
[351092809,1738331435995,-506.21,0.00016438,2]
[351092810,1738331436006,-500.0,0.00016438,2]
[351092811,1738331436016,-698.71,0.00016438,2]
[351092812,1738331436025,-511.98682788,0.00016438,2]
[351092813,1738331436034,-500.0,0.00016438,2]
[351092814,1738331436043,-598.32,0.00016438,2]
[351092815,1738331436053,-500.0,0.00016438,2]
[351092816,1738331436062,-604.38,0.00016438,2]
[351092817,1738331436071,-500.0,0.00016438,2]
[351092818,1738331436080,-500.0,0.00016438,2]
[351092819,1738331436089,-500.0,0.00016438,2]
[351092820,1738331436098,-500.0,0.00016438,2]
[351092821,1738331436107,-500.0,0.00016438,2]
[351092822,1738331436116,-500.0,0.00016438,2]
[351092823,1738331436125,-563.98,0.00016438,2]
[351092824,1738331436135,-903.25,0.00016438,2]
[351092825,1738331436144,-500.0,0.00016438,2]
[351092826,1738331436153,-500.32757117,0.00016438,2]
[351092827,1738331436162,-500.0,0.00016438,2]
[351092828,1738331436171,-1045.44,0.00016438,2]
[351092829,1738331436180,-500.0,0.00016438,2]
[351092830,1738331436189,-500.0,0.00016438,2]
[351092831,1738331436199,-500.0,0.00016438,2]
[351092832,1738331436208,-576.95,0.00016438,2]
[351092833,1738331436218,-500.0,0.00016438,2]
[351092834,1738331436228,-500.0,0.00016438,2]
[351092835,1738331436237,-500.0,0.00016438,2]
[351092836,1738331436247,-753.7,0.00016438,2]
[351092837,1738331436256,-500.0,0.00016438,2]
[351092838,1738331436266,-608.6469043,0.00016438,2]
[351092839,1738331436275,-500.0,0.00016438,2]
[351092840,1738331436284,-500.0,0.00016438,2]
[351092841,1738331436293,-500.0,0.00016438,2]
[351092842,1738331436302,-500.0,0.00016438,2]
[351092843,1738331436311,-500.0,0.00016438,2]
[351092844,1738331436320,-500.0,0.00016438,2]
[351092845,1738331436330,-500.0,0.00016438,2]
[351092846,1738331436339,-574.63,0.00016438,2]
[351092847,1738331436348,-500.0,0.00016438,2]
[351092848,1738331436357,-500.0,0.00016438,2]
[351092849,1738331436366,-500.0,0.00016438,2]
[351092850,1738331436374,-500.0,0.00016438,2]
[351092851,1738331436384,-500.0,0.00016438,2]
[351092852,1738331436393,-500.0,0.00016438,2]
[351092853,1738331436402,-500.0,0.00016438,2]
[351092854,1738331436411,-500.0,0.00016438,2]
[351092855,1738331436421,-500.0,0.00016438,2]
[351092856,1738331436431,-500.0,0.00016438,2]
[351092857,1738331436441,-500.0,0.00016438,2]
[351092858,1738331436450,-592.48,0.00016438,2]
[351092859,1738331436460,-500.0,0.00016438,2]
[351092860,1738331436469,-665.35,0.00016438,2]
[351092861,1738331436479,-500.0,0.00016438,2]
[351092862,1738331436489,-500.0,0.00016438,2]
[351092863,1738331436499,-530.11,0.00016438,2]
[351092864,1738331436511,-500.0,0.00016438,2]
[351092865,1738331436521,-647.27,0.00016438,2]
[351092866,1738331436531,-987.2,0.00016438,2]
[351092867,1738331436540,-500.0,0.00016438,2]
[351092868,1738331436549,-905.39,0.00016438,2]
[351092869,1738331436559,-500.0,0.00016438,2]
[351092870,1738331436568,-500.0,0.00016438,2]
[351092871,1738331436577,-506.19,0.00016438,2]
[351092872,1738331436586,-500.0,0.00016438,2]
[351092873,1738331436596,-532.84,0.00016438,2]
[351092874,1738331436605,-500.0,0.00016438,2]
[351092875,1738331436614,-500.0,0.00016438,2]
[351092876,1738331436623,-500.0,0.00016438,2]
[351092877,1738331436632,-551.38,0.00016438,2]
[351092878,1738331436647,-654.39,0.00016438,2]
[351092879,1738331436657,-500.0,0.00016438,2]
[351092880,1738331436666,-548.68,0.00016438,2]
[351092881,1738331436676,-515.59,0.00016438,2]
[351092882,1738331436685,-622.39,0.00016438,2]
[351092883,1738331436694,-500.0,0.00016438,2]
[351092884,1738331436703,-500.0,0.00016438,2]
[351092885,1738331436712,-500.0,0.00016438,2]
[351092886,1738331436721,-500.0,0.00016438,2]
[351092887,1738331436731,-500.0,0.00016438,2]
[351092888,1738331436740,-500.0,0.00016438,2]
[351092889,1738331436749,-500.0,0.00016438,2]
[351092890,1738331436758,-658.0,0.00016438,2]
[351092891,1738331436768,-642.06,0.00016438,2]
[351092892,1738331436777,-500.0,0.00016438,2]
[351092893,1738331436787,-500.0,0.00016438,2]
[351092894,1738331436796,-500.0,0.00016438,2]
[351092895,1738331436805,-954.91,0.00016438,2]
[351092896,1738331436815,-500.0,0.00016438,2]
[351092897,1738331436824,-500.0,0.00016438,2]
[351092898,1738331436833,-929.67,0.00016438,2]
[351092899,1738331436843,-500.0,0.00016438,2]
[351092900,1738331436853,-809.48,0.00016438,2]
[351092901,1738331436862,-500.0,0.00016438,2]
[351092902,1738331436872,-500.0,0.00016438,2]
[351092903,1738331436882,-665.8,0.00016438,2]
[351092904,1738331436891,-1634.13,0.00016438,2]
[351092905,1738331436900,-500.0,0.00016438,2]
[351092906,1738331436909,-500.0,0.00016438,2]
[351092907,1738331436920,-503.66,0.00016438,2]
[351092908,1738331436931,-500.0,0.00016438,2]
[351092909,1738331436941,-500.0,0.00016438,2]
[351092910,1738331436950,-500.0,0.00016438,2]
[351092911,1738331436959,-500.0,0.00016438,2]
[351092912,1738331436970,-500.0,0.00016438,2]
[351092913,1738331436979,-500.0,0.00016438,2]
[351092914,1738331436988,-1352.96,0.00016438,2]
[351092915,1738331436999,-500.0,0.00016438,2]
[351092916,1738331437009,-529.48,0.00016438,2]
[351092917,1738331437018,-1177.92,0.00016438,2]
[351092918,1738331437028,-500.0,0.00016438,2]
[351092919,1738331437037,-500.0,0.00016438,2]
[351092920,1738331437049,-500.0,0.00016438,2]
[351092921,1738331437058,-500.0,0.00016438,2]
[351092922,1738331437067,-500.0,0.00016438,2]
[351092923,1738331437076,-2963.61,0.00016438,2]
[351092924,1738331437086,-585.22,0.00016438,2]
[351092925,1738331437097,-500.0,0.00016438,2]
[351092926,1738331437108,-500.0,0.00016438,2]
[351092927,1738331437117,-741.83,0.00016438,2]
[351092928,1738331437128,-500.0,0.00016438,2]
[351092929,1738331437137,-500.0,0.00016438,2]
[351092930,1738331437146,-500.0,0.00016438,2]
[351092931,1738331437155,-1143.7,0.00016438,2]
[351092932,1738331437164,-500.0,0.00016438,2]
[351092933,1738331437173,-500.0,0.00016438,2]
[351092934,1738331437184,-500.0,0.00016438,2]
[351092935,1738331437195,-500.0,0.00016438,2]
[351092936,1738331437204,-1123.38,0.00016438,2]
[351092937,1738331437213,-500.0,0.00016438,2]
[351092938,1738331437223,-500.0,0.00016438,2]
[351092939,1738331437235,-500.0,0.00016438,2]
[351092940,1738331437245,-516.4605593,0.00016438,2]
[351092941,1738331437254,-500.0,0.00016438,2]
[351092942,1738331437263,-500.0,0.00016438,2]
[351092943,1738331437272,-2007.5380467,0.00016438,2]
[351092944,1738331437301,-1642.3119533,0.00016438,2]
[351092945,1738331437311,-687.76,0.00016438,2]
[351092946,1738331437320,-1730.6,0.00016438,2]
[351092947,1738331437330,-436.31991633,0.00016438,2]
[351092948,1738331437341,-2549.60008367,0.00016438,2]
[351092949,1738331437350,-500.0,0.00016438,2]
[351092950,1738331437359,-500.0,0.00016438,2]
[351092951,1738331437368,-361.14505879,0.00016438,2]
[351092952,1738331437380,-138.85494121,0.00016438,2]
[351092953,1738331437389,-500.0,0.00016438,2]
[351092954,1738331437399,-500.0,0.00016438,2]
[351092955,1738331437408,-1571.6,0.00016438,2]
[351092956,1738331437417,-500.0,0.00016438,2]
[351092957,1738331437426,-2554.92,0.00016438,2]
[351092958,1738331437437,-500.0,0.00016438,2]
[351092959,1738331437447,-500.0,0.00016438,2]
[351092960,1738331437456,-313.99970933,0.00016438,2]
[351092961,1738331437465,-409.23210003,0.00016438,2]
[351092962,1738331437476,-500.0,0.00016438,2]
[351092963,1738331437485,-500.0,0.00016438,2]
[351092964,1738331437494,-500.0,0.00016438,2]
[351092965,1738331437504,-1876.2,0.00016438,2]
[351092966,1738331437514,-500.0,0.00016438,2]
[351092967,1738331437523,-620.89,0.00016438,2]
[351092968,1738331437596,-500.0,0.00016438,2]
[351092969,1738331437605,-735.41,0.00016438,2]
[351092970,1738331437614,-1603.61,0.00016438,2]
[351092971,1738331437623,-1068.2,0.00016438,2]
[351092972,1738331437632,-445.05,0.00016438,2]
[351092973,1738331437641,-500.0,0.00016438,2]
[351092974,1738331437651,-500.0,0.00016438,2]
[351092975,1738331437660,-542.84,0.00016438,2]
[351092976,1738331437669,-475.59983042,0.00016438,2]
[351092977,1738331437678,-338.32370631,0.00016438,2]
[351092978,1738331437690,-161.67629369,0.00016438,2]
[351092979,1738331437700,-330.49970631,0.00016438,2]
[351092980,1738331437721,-455.77029369,0.00016438,2]
[351092981,1738331437730,-500.0,0.00016438,2]
[351092982,1738331437740,-500.0,0.00016438,2]
[351092983,1738331437749,-500.0,0.00016438,2]
[351092984,1738331437759,-500.0,0.00016438,2]
[351092986,1738331437768,-500.0,0.00016438,2]
[351092987,1738331437777,-500.0,0.00016438,2]
[351092988,1738331437786,-500.0,0.00016438,2]
[351092989,1738331437796,-500.0,0.00016438,2]
[351092990,1738331437805,-500.0,0.00016438,2]
[351092991,1738331437814,-500.0,0.00016438,2]
[351092992,1738331437823,-1000.0,0.00016438,2]
[351092993,1738331437832,-739.89,0.00016438,2]
[351092994,1738331437841,-500.0,0.00016438,2]
[351092995,1738331437850,-739.7,0.00016438,2]
[351092996,1738331437859,-1196.83,0.00016438,2]
[351092997,1738331437869,-500.0,0.00016438,2]
[351092998,1738331437878,-500.0,0.00016438,2]
[351092999,1738331437887,-536.25,0.00016438,2]
[351093000,1738331437896,-712.4,0.00016438,2]
[351093001,1738331437905,-956.81,0.00016438,2]
[351093002,1738331437914,-860.82,0.00016438,2]
[351093003,1738331437928,-829.0,0.00016438,2]
[351093004,1738331437937,-500.0,0.00016438,2]
[351093005,1738331437947,-500.0,0.00016438,2]
[351093006,1738331437956,-500.0,0.00016438,2]
[351093007,1738331437967,-1377.77,0.00016438,2]
[351093008,1738331437976,-500.0,0.00016438,2]
[351093009,1738331437985,-516.86,0.00016438,2]
[351093010,1738331437995,-500.0,0.00016438,2]
[351093011,1738331438005,-500.0,0.00016438,2]
[351093012,1738331438015,-500.0,0.00016438,2]
[351093013,1738331438025,-1664.34,0.00016438,2]
[351093014,1738331438035,-500.0,0.00016438,2]
[351093015,1738331438044,-500.0,0.00016438,2]
[351093016,1738331438055,-500.0,0.00016438,2]
[351093017,1738331438064,-2818.25,0.00016438,2]
[351093018,1738331438073,-500.0,0.00016438,2]
[351093019,1738331438082,-782.42,0.00016438,2]
[351093020,1738331438091,-500.0,0.00016438,2]
[351093021,1738331438100,-911.31,0.00016438,2]
[351093022,1738331438109,-500.0,0.00016438,2]
[351093023,1738331438118,-599.89,0.00016438,2]
[351093024,1738331438127,-500.0,0.00016438,2]
[351093025,1738331438136,-500.0,0.00016438,2]
[351093026,1738331438145,-918.57,0.00016438,2]
[351093027,1738331438155,-1313.52,0.00016438,2]
[351093028,1738331438164,-500.0,0.00016438,2]
[351093029,1738331438174,-1388.21,0.00016438,2]
[351093030,1738331438183,-500.0,0.00016438,2]
[351093031,1738331438192,-500.0,0.00016438,2]
[351093032,1738331438201,-2575.37,0.00016438,2]
[351093033,1738331438210,-500.0,0.00016438,2]
[351093034,1738331438219,-500.0,0.00016438,2]
[351093035,1738331438228,-565.58,0.00016438,2]
[351093036,1738331438238,-500.0,0.00016438,2]
[351093037,1738331438247,-500.0,0.00016438,2]
[351093038,1738331438257,-500.0,0.00016438,2]
[351093039,1738331438266,-867.08,0.00016438,2]
[351093040,1738331438276,-500.0,0.00016438,2]
[351093041,1738331438285,-500.0,0.00016438,2]
[351093042,1738331438295,-746.6,0.00016438,2]
[351093043,1738331438304,-500.0,0.00016438,2]
[351093044,1738331438313,-500.0,0.00016438,2]
[351093045,1738331438323,-500.0,0.00016438,2]
[351093046,1738331438332,-500.0,0.00016438,2]
[351093047,1738331438341,-628.99,0.00016438,2]
[351093048,1738331438350,-500.0,0.00016438,2]
[351093049,1738331438359,-539.08,0.00016438,2]
[351093050,1738331438367,-500.0,0.00016438,2]
[351093051,1738331438376,-500.0,0.00016438,2]
[351093052,1738331438386,-632.37,0.00016438,2]
[351093053,1738331438394,-500.0,0.00016438,2]
[351093054,1738331438403,-621.17,0.00016438,2]
[351093055,1738331438413,-500.0,0.00016438,2]
[351093056,1738331438422,-519.51122819,0.00016438,2]
[351093057,1738331438432,-1249.8,0.00016438,2]
[351093058,1738331438441,-500.0,0.00016438,2]
[351093059,1738331438451,-533.09,0.00016438,2]
[351093060,1738331438460,-515.11203845,0.00016438,2]
[351093061,1738331438469,-190.30869672,0.00016438,2]
[351093062,1738331438479,-1138.51,0.00016438,2]
[351093063,1738331438488,-500.93545538,0.00016438,2]
[351093064,1738331438497,-500.0,0.00016438,2]
[351093065,1738331438506,-500.0,0.00016438,2]
[351093066,1738331438515,-1669.07,0.00016438,2]
[351093067,1738331438524,-500.0,0.00016438,2]
[351093068,1738331438533,-500.0,0.00016438,2]
[351093069,1738331438542,-500.0,0.00016438,2]
[351093070,1738331438551,-514.26670981,0.00016438,2]
[351093071,1738331438561,-1201.96,0.00016438,2]
[351093072,1738331438570,-500.0,0.00016438,2]
[351093073,1738331438579,-573.56,0.00016438,2]
[351093074,1738331438589,-500.0,0.00016438,2]
[351093075,1738331438598,-500.0,0.00016438,2]
[351093076,1738331438608,-500.0,0.00016438,2]
[351093077,1738331438617,-500.0,0.00016438,2]
[351093078,1738331438626,-500.0,0.00016438,2]
[351093079,1738331438636,-500.0,0.00016438,2]
[351093080,1738331438646,-2175.56,0.00016438,2]
[351093081,1738331438656,-500.0,0.00016438,2]
[351093082,1738331438665,-500.0,0.00016438,2]
[351093083,1738331438675,-1109.12,0.00016438,2]
[351093084,1738331438684,-628.9,0.00016438,2]
[351093085,1738331438694,-500.0,0.00016438,2]
[351093086,1738331438703,-817.41,0.00016438,2]
[351093087,1738331438711,-500.0,0.00016438,2]
[351093088,1738331438721,-589.99,0.00016438,2]
[351093089,1738331438730,-500.0,0.00016438,2]
[351093090,1738331438739,-1123.14,0.00016438,2]
[351093091,1738331438747,-730.15,0.00016438,2]
[351093092,1738331438757,-500.0,0.00016438,2]
[351093093,1738331438767,-500.0,0.00016438,2]
[351093094,1738331438776,-500.0,0.00016438,2]
[351093095,1738331438785,-500.0,0.00016438,2]
[351093096,1738331438795,-500.0,0.00016438,2]
[351093097,1738331438804,-500.0,0.00016438,2]
[351093098,1738331438813,-500.0,0.00016438,2]
[351093099,1738331438822,-500.0,0.00016438,2]
[351093100,1738331438831,-500.0,0.00016438,2]
[351093101,1738331438840,-500.0,0.00016438,2]
[351093102,1738331438849,-1096.5,0.00016438,2]
[351093103,1738331438858,-1589.69,0.00016438,2]
[351093104,1738331438867,-4466.76,0.00016438,2]
[351093105,1738331438876,-500.0,0.00016438,2]
[351093106,1738331438885,-500.0,0.00016438,2]
[351093107,1738331438900,-500.0,0.00016438,2]
[351093108,1738331438909,-500.0,0.00016438,2]
[351093109,1738331438922,-500.0,0.00016438,2]
[351093110,1738331438931,-500.0,0.00016438,2]
[351093111,1738331438942,-500.0,0.00016438,2]
[351093112,1738331438951,-811.64,0.00016438,2]
[351093113,1738331438961,-1038.63,0.00016438,2]
[351093114,1738331438971,-2383.87,0.00016438,2]
[351093115,1738331438980,-1714.39,0.00016438,2]
[351093116,1738331438989,-500.0,0.00016438,2]
[351093117,1738331438998,-500.0,0.00016438,2]
[351093118,1738331439008,-500.0,0.00016438,2]
[351093119,1738331439017,-500.0,0.00016438,2]
[351093120,1738331439026,-500.0,0.00016438,2]
[351093121,1738331439035,-643.52,0.00016438,2]
[351093122,1738331439044,-653.94,0.00016438,2]
[351093123,1738331439053,-579.23,0.00016438,2]
[351093124,1738331439063,-575.79,0.00016438,2]
[351093125,1738331439072,-500.0,0.00016438,2]
[351093126,1738331439081,-1408.5,0.00016438,2]
[351093127,1738331439090,-500.0,0.00016438,2]
[351093128,1738331439099,-531.00220943,0.00016438,2]
[351093129,1738331439108,-500.0,0.00016438,2]
[351093130,1738331439117,-500.0,0.00016438,2]
[351093131,1738331439127,-857.15,0.00016438,2]
[351093132,1738331439137,-1443.72,0.00016438,2]
[351093133,1738331439148,-500.0,0.00016438,2]
[351093134,1738331439159,-2347.18,0.00016438,2]
[351093135,1738331439169,-3749.58,0.00016438,2]
[351093136,1738331439179,-1881.99,0.00016438,2]
[351093137,1738331439189,-500.0,0.00016438,2]
[351093138,1738331439200,-500.0,0.00016438,2]
[351093139,1738331439210,-500.0,0.00016438,2]
[351093140,1738331439221,-500.0,0.00016438,2]
[351093141,1738331439230,-1192.43,0.00016438,2]
[351093142,1738331439239,-2537.4,0.00016438,2]
[351093143,1738331439249,-529.84,0.00016438,2]
[351093144,1738331439258,-500.0,0.00016438,2]
[351093145,1738331439267,-500.0,0.00016438,2]
[351093146,1738331439277,-511.01,0.00016438,2]
[351093147,1738331439286,-520.15,0.00016438,2]
[351093148,1738331439295,-500.0,0.00016438,2]
[351093149,1738331439304,-500.0,0.00016438,2]
[351093150,1738331439314,-500.0,0.00016438,2]
[351093151,1738331439323,-686.71,0.00016438,2]
[351093152,1738331439332,-760.48,0.00016438,2]
[351093153,1738331439341,-500.0,0.00016438,2]
[351093154,1738331439350,-500.0,0.00016438,2]
[351093155,1738331439359,-500.0,0.00016438,2]
[351093156,1738331439369,-1242.43,0.00016438,2]
[351093157,1738331439378,-500.0,0.00016438,2]
[351093158,1738331439388,-500.0,0.00016438,2]
[351093159,1738331439397,-1563.35,0.00016438,2]
[351093160,1738331439406,-660.74,0.00016438,2]
[351093161,1738331439415,-1655.73,0.00016438,2]
[351093162,1738331439424,-1736.45,0.00016438,2]
[351093163,1738331439434,-1241.45,0.00016438,2]
[351093164,1738331439445,-500.0,0.00016438,2]
[351093165,1738331439454,-1943.50342233,0.00016438,2]
[351093166,1738331439470,-2508.65657767,0.00016438,2]
[351093167,1738331439480,-500.0,0.00016438,2]
[351093168,1738331439489,-3401.87,0.00016438,2]
[351093169,1738331439498,-751.24,0.00016438,2]
[351093170,1738331439507,-500.0,0.00016438,2]
[351093171,1738331439516,-3290.56,0.00016438,2]
[351093172,1738331439525,-500.0,0.00016438,2]
[351093173,1738331439535,-500.0,0.00016438,2]
[351093174,1738331439544,-505.96456797,0.00016438,2]
[351093175,1738331439552,-500.0,0.00016438,2]
[351093176,1738331439561,-1295.48,0.00016438,2]
[351093177,1738331439570,-500.0,0.00016438,2]
[351093178,1738331439579,-500.0,0.00016438,2]
[351093179,1738331439588,-1891.53,0.00016438,2]
[351093180,1738331439597,-500.0,0.00016438,2]
[351093181,1738331439606,-500.0,0.00016438,2]
[351093182,1738331439615,-944.16011736,0.00016438,2]
[351093183,1738331439627,-2861.81988264,0.00016438,2]
[351093184,1738331439636,-500.0,0.00016438,2]
[351093185,1738331439645,-762.01,0.00016438,2]
[351093186,1738331439654,-500.0,0.00016438,2]
[351093187,1738331439663,-2173.05,0.00016438,2]
[351093188,1738331439672,-965.0,0.00016438,2]
[351093189,1738331439681,-500.0,0.00016438,2]
[351093190,1738331439690,-1482.09,0.00016438,2]
[351093191,1738331439703,-500.0,0.00016438,2]
[351093192,1738331439712,-500.0,0.00016438,2]
[351093193,1738331439721,-500.0,0.00016438,2]
[351093194,1738331439731,-500.0,0.00016438,2]
[351093195,1738331439740,-500.0,0.00016438,2]
[351093196,1738331439749,-500.0,0.00016438,2]
[351093197,1738331439758,-500.0,0.00016438,2]
[351093198,1738331439767,-500.0,0.00016438,2]
[351093199,1738331439776,-500.0,0.00016438,2]
[351093200,1738331439786,-500.0,0.00016438,2]
[351093202,1738331439795,-2117.77,0.00016438,2]
[351093203,1738331439805,-500.0,0.00016438,2]
[351093204,1738331439814,-822.18,0.00016438,2]
[351093205,1738331439824,-2597.78,0.00016438,2]
[351093206,1738331439833,-500.0,0.00016438,2]
[351093207,1738331439842,-3322.12,0.00016438,2]
[351093208,1738331439852,-672.46,0.00016438,2]
[351093209,1738331439861,-500.0,0.00016438,2]
[351093210,1738331439870,-801.38,0.00016438,2]
[351093211,1738331439879,-500.0,0.00016438,2]
[351093212,1738331439889,-500.0,0.00016438,2]
[351093213,1738331439898,-500.0,0.00016438,2]
[351093214,1738331439907,-647.32,0.00016438,2]
[351093215,1738331439917,-1456.0,0.00016438,2]
[351093216,1738331439929,-1603.32,0.00016438,2]
[351093217,1738331439938,-500.0,0.00016438,2]
[351093218,1738331439950,-500.0,0.00016438,2]
[351093219,1738331439959,-1251.4,0.00016438,2]
[351093220,1738331439969,-1067.36,0.00016438,2]
[351093221,1738331439979,-452.83576256,0.00016438,2]
[351093223,1738331439988,-680.04,0.00016438,2]
[351093224,1738331439999,-925.79,0.00016438,2]